Cogmind - Beta 14 @@@ ROGUE MODE // 2024.08.18 @ 20:19:10 Player: DaNachoSteve Result: Destroyed self with Grenade Launcher Performance ------------- Evolutions (0) 0 Regions Visited (2) 400 Robots Destroyed (32) 160 Value Destroyed (508) 508 Prototype IDs (4) 80 Alien Tech Used (0) 0 Bonus (2) 2 TOTAL SCORE: 1150 Bonus ------- High Alert Combat Kills 2 Cogmind --------- Core Integrity 0/250 Matter 203/300 Energy 125/125 System Corruption 0% Temperature Cool (0) Movement Rolling (105) Ox1 Location -10/Mines Parts ------- > --- POWER (1) -------- Light Ion Engine > --- PROPULSION (2) --- Armored Wheel Armored Wheel > --- UTILITY (2) ------ Large Storage Unit Weapon Shielding > --- WEAPON (2) ------- Grenade Launcher Grenade Launcher > --- INVENTORY (15) --- Armored Wheel Armored Wheel Heat Sink Medium Matter Pod (0) Sensor Array ECM Suite Propulsion Shielding Light Armor Plating Light Armor Plating EM Pulse Gun Particle Gun Assault Rifle Grenade Launcher Peak State ------------ > --- POWER ------------ Light Ion Engine > --- PROPULSION ------- Armored Wheel Armored Wheel > --- UTILITY ---------- Large Storage Unit Weapon Shielding > --- WEAPON ----------- Particle Gun Rocket Launcher > --- INVENTORY -------- Armored Wheel Armored Wheel Heat Sink Medium Matter Pod Sensor Array ECM Suite Propulsion Shielding Light Armor Plating Light Armor Plating EM Pulse Gun Assault Rifle Grenade Launcher Grenade Launcher Grenade Launcher [Rating: 12] Favorites ----------- Power Light Ion Engine Engine Light Ion Engine Propulsion Armored Wheel Wheel Armored Wheel Utility Large Storage Unit Device Sensor Array Storage Large Storage Unit Protection Power Shielding Weapon Grenade Launcher Energy Gun EM Pulse Gun Ballistic Gun Assault Rifle Launcher Grenade Launcher Build | -11 -10 -10 ------- Run | Yrd Mat Min Slots Evolved . | . . . Power . | . . . Propulsion . | . . . Utility . | . . . Weapon . | . . . Parts Attached 28 | 6 16 6 Power 3 | 1 2 . Engine 3 | 1 2 . Core . | . . . Reactor . | . . . Propulsion 7 | 2 5 . Treads . | . . . Leg . | . . . Wheel 7 | 2 5 . Hover . | . . . Flight . | . . . Utility 7 | 1 5 1 Device 2 | 1 1 . Storage 2 | . 2 . Processor . | . . . Hackware . | . . . Protection 3 | . 2 1 Artifact . | . . . Weapon 11 | 2 4 5 Energy Gun 3 | 1 1 1 Energy Cannon . | . . . Ballistic Gun 1 | 1 . . Ballistic Cannon . | . . . Launcher 7 | . 3 4 Special Weapon . | . . . Impact Weapon . | . . . Slashing Weapon . | . . . Piercing Weapon . | . . . Special Melee Weapon . | . . . Unidentified Prototypes . | . . . Parts Lost 3 | . 1 2 Power 1 | . 1 . Propulsion . | . . . Utility . | . . . Weapon 2 | . . 2 Highest Loss Streak 1 | . 1 1 To Critical Strikes . | . . . Average Slot Usage (%) 99 | . 99 98 Engine 13 | . 13 14 Wheel 28 | . 28 28 Device 3 | . 4 . Storage 10 | . 9 14 Protection 13 | . 13 14 Energy Gun 6 | . 6 3 Ballistic Gun 5 | . 6 . Launcher 16 | . 14 22 Peak Build Rating 12 | 6 10 12 Average Rating 8 | 3 9 10 On Entrance 5 | . 6 10 Naked Turns . | . . . Heaviest Build 34 | 8 34 33 Greatest Support 28 | 20 28 24 Greatest Overweight (x) 1 | . 1 1 Average Overweight (x) . | . . 1 Largest Inventory Capacity 15 | 5 15 15 Average Capacity 11 | 5 11 15 Most Carried 15 | 3 15 15 Average Carried 8 | . 8 13 Final Capacity 15 | 5 15 15 Final Carried 13 | . 13 13 Class Distribution -------------------- 100% | Mutant Dominant Class ---------------- Mutant | -10/Materials Mutant | -10/Mines Resources | -11 -10 -10 ----------- Run | Yrd Mat Min Matter Collected 954 | 262 335 357 Remotely . | . . . Salvage Created 689 | 48 373 268 Parts 46 | 2 29 15 Haulers Intercepted 1 | . 1 . Recyclers Shooed 2 | . 1 1 Parts Field Recycled . | . . . Retrieved Matter . | . . . Parts Self-Destructed . | . . . Prevented . | . . . Kills | -11 -10 -10 ------- Run | Yrd Mat Min Combat Hostiles Destroyed 29 | 1 11 17 Guns 5 | 1 2 2 AOE 24 | . 9 15 Classes Destroyed 11 | 1 8 2 Worker 3 | . 2 1 Builder 1 | . 1 . Tunneler 1 | . 1 . Hauler 1 | . 1 . Recycler 4 | . 1 3 Operator 1 | . 1 . Watcher 3 | . 3 . Swarmer 11 | . 6 5 Grunt 6 | 1 5 . Demolisher 1 | . . 1 Assembled 11 | . . 11 Best Kill Streak 11 | 1 4 11 Combat Bots Only 11 | 1 3 11 Max Kills in Single Turn 3 | 1 2 3 Gunslinging . | . . . Exploded 3 | . 2 3 Melee . | . . . Uniques/NPCs Destroyed . | . . . Combat | -11 -10 -10 -------- Run | Yrd Mat Min Hostile Shots Fired 90 | 5 46 39 Missed 24 | 2 12 10 Damage Taken 985 | 33 445 507 Core 259 | 11 125 123 Absorbed by Shields . | . . . Redirected to Shielding 47 | . 11 36 Core Remaining (%) 95 | 95 . . Volleys Fired 63 | 4 35 24 Largest 2 | 2 2 2 Hottest 65 | 60 60 65 Shots Fired 113 | 8 69 36 Gun 63 | 8 45 10 Cannon . | . . . Launcher 50 | . 24 26 Special . | . . . Kinetic 26 | 4 22 . Thermal 10 | . . 10 Explosive 50 | . 24 26 Electromagnetic 27 | 4 23 . Robot Hit Streak 6 | 4 6 5 Robot Miss Streak 3 | 1 3 2 Penetration Max . | . . . Secondary Targets . | . . . Shots Hit Robots 50 | 6 28 16 Core Hits 72 | 2 36 34 Critical Kills . | . . . Critical Parts Destroyed . | . . . Critical Strikes . | . . . Melee Attacks . | . . . Impact . | . . . Slashing . | . . . Piercing . | . . . Sneak Attacks . | . . . Combat Hostiles . | . . . Follow-up Attacks . | . . . Damage Inflicted 2423 | 77 1077 1269 Guns 582 | 77 368 137 Cannons . | . . . Explosions 1841 | . 709 1132 Melee . | . . . Ramming . | . . . Kinetic 175 | 37 138 . Thermal 161 | . 24 137 Explosive 1817 | . 685 1132 Electromagnetic 270 | 40 230 . Impact . | . . . Slashing . | . . . Piercing . | . . . Highest Corruption . | . . . Average Corruption . | . . . Corruption Purged . | . . . Corruption Blocked . | . . . Overload Shots . | . . . Overflow Damage 33 | . 5 28 Projectiles . | . . . Explosions 33 | . 5 28 Melee . | . . . Knockbacks . | . . . Impact . | . . . Kinetic . | . . . Secondary . | . . . Self-Inflicted Damage 124 | . 68 56 Shots 6 | . 2 4 Rammed . | . . . Targets Rammed . | . . . Kicked . | . . . Crushed . | . . . Highest Temperature 120 | 18 115 120 Average Temperature 41 | 13 49 38 Received Heat Transfer 200 | 18 162 20 Siege Activations . | . . . Robots Corrupted . | . . . Combat Hostiles . | . . . Parts Fried 2 | . 2 . Impact Corruptions . | . . . Robots Melted . | . . . Combat Hostiles . | . . . Parts Melted . | . . . Heat Transferred 383 | . 50 333 Parts Sabotaged . | . . . Parts Stolen . | . . . Parts Stripped . | . . . Power Chain Reactions 1 | . 1 . Alert | -11 -10 -10 ------- Run | Yrd Mat Min Peak Influence 430 | 35 430 367 Initial 167 | . 22 167 Average 167 | 7 161 242 Maximum Alert Level 2 | . 2 1 Low Security (%) 64 | 100 69 35 Level 1 31 | . 24 64 Level 2 4 | . 6 . Level 3 . | . . . Level 4 . | . . . Level 5 . | . . . High Security . | . . . Max Security . | . . . Squads Dispatched 1 | . 1 . Investigation . | . . . Extermination . | . . . Reinforcement 1 | . 1 . Assault . | . . . Garrison . | . . . Intercept . | . . . Searches Triggered . | . . . Construction Impeded . | . . . Haulers Reinforced . | . . . Active Scanning Responses . | . . . Cargo Convoy Interrupts . | . . . Stealth | -11 -10 -10 --------- Run | Yrd Mat Min Distress Signals 1 | . 1 . Communications Jammed . | . . . Distress Signals . | . . . Times Spotted 37 | 1 17 19 Peak Tracking Total 6 | 1 3 6 Tactical Retreats 1 | . 1 . Traps | -11 -10 -10 ------- Run | Yrd Mat Min Traps Triggered . | . . . Indirectly . | . . . Trap Hack Attempts . | . . . Triggered . | . . . Disarmed . | . . . Reprogrammed . | . . . Reused . | . . . Traps Extracted . | . . . Installed . | . . . Triggered . | . . . Machines | -11 -10 -10 ---------- Run | Yrd Mat Min Machines Disabled 1 | . 1 . Max in Single Turn 1 | . 1 . Machines Repaired . | . . . Machines Dismantled . | . . . Machines Sabotaged . | . . . Overloaded Fab Kills . | . . . Hacking | -11 -10 -10 --------- Run | Yrd Mat Min Machines Accessed 6 | . 6 . Terminals 6 | . 6 . Fabricators . | . . . Repair Stations . | . . . Recycling Units . | . . . Scanalyzers . | . . . Garrison Access . | . . . Total Hacks 28 | . 28 . Successful 15 | . 15 . Failed 13 | . 13 . Catastrophic 1 | . 1 . Database Lockouts . | . . . Manual . | . . . Terminals 28 | . 28 . Fabricators . | . . . Repair Stations . | . . . Recycling Units . | . . . Scanalyzers . | . . . Garrison Access . | . . . Terminal Hacks 15 | . 15 . Record 1 | . 1 . Prototype ID Bank 2 | . 2 . Repair Station Index 1 | . 1 . Locate Traps 2 | . 2 . Dispatch Records 1 | . 1 . Security Status 1 | . 1 . Surveillance Status 1 | . 1 . Patrol Status 1 | . 1 . Hauler Manifests 1 | . 1 . Registered Prototypes 1 | . 1 . Zone Layout 3 | . 3 . Fabricator Hacks . | . . . Repair Station Hacks . | . . . Recycling Unit Hacks . | . . . Scanalyzer . | . . . Garrison Access Hacks . | . . . Unauthorized Hacks . | . . . Terminals . | . . . Fabricators . | . . . Repair Stations . | . . . Recycling Units . | . . . Scanalyzers . | . . . Garrison Access . | . . . Data Cores Recovered . | . . . Used . | . . . Hacking Detections 6 | . 6 . Full Trace Events 5 | . 5 . Feedback Events . | . . . Feedback Blocked . | . . . Robot Schematics Acquired . | . . . Robots Built . | . . . Authchips . | . . . Time . | . . . Total Robot Build Rating . | . . . Part Schematics Acquired . | . . . Parts Built . | . . . Authchips . | . . . Time . | . . . Total Part Build Rating . | . . . Parts Repaired . | . . . Time . | . . . Parts Recycled . | . . . Recycled Matter . | . . . Retrieved Matter . | . . . Retrieved Components . | . . . Parts Scanalyzed . | . . . Part Schematics Acquired . | . . . Parts Damaged . | . . . Bothacking | -11 -10 -10 ------------ Run | Yrd Mat Min Used RIF Installer . | . . . Robots Hacked . | . . . Non-combat . | . . . Combat . | . . . Robot Hacks Applied . | . . . Relay Couplers Released . | . . . Fabnet Peak Effective % . | . . . Robots Rewired . | . . . Allies Hacked . | . . . Hacks Repelled . | . . . Allies | -11 -10 -10 -------- Run | Yrd Mat Min Total Allies . | . . . Largest Group . | . . . Highest-Rated Group . | . . . Highest-Rated Ally . | . . . Total Orders . | . . . Ally Attacks . | . . . Total Damage . | . . . Kills . | . . . Allies Corrupted . | . . . Allies Melted . | . . . Intel | -11 -10 -10 ------- Run | Yrd Mat Min Robot Analysis Total . | . . . Derelict Logs Recovered 1 | . . 1 Drone Launches . | . . . Drone Recoveries . | . . . Exploration | -11 -10 -10 ------------- Run | Yrd Mat Min Turns Passed 1044 | 86 723 235 Spaces Moved 809 | 69 581 159 Core 21 | 21 . . Treads . | . . . Legs . | . . . Wheels 788 | 48 581 159 Hover . | . . . Flight . | . . . Fastest Speed 50 | 50 80 105 Average Speed 96 | 70 96 105 Slowest Speed 105 | 80 105 105 Overloaded Moves . | . . . Propulsion Burnouts . | . . . Robots Hopped . | . . . Cave-ins Triggered . | . . . Exploration Rate (%) 44 | 6 75 52 Regions Visited 2 Branch Regions 1 Pre-discovered Areas . | . . . Known Exits Taken . | . . . Unknown Exits Taken 2 | 1 1 . Scrap Searched 1 | . . 1 Spaces Dug . | . . . Terrain Destroyed 308 | . 146 162 Melee . | . . . Projectile . | . . . AOE 308 | . 146 162 Terrain Rammed . | . . . Walls Destroyed . | . . . Machines Disabled . | . . . Actions | -11 -10 -10 --------- Run | Yrd Mat Min Total 960 | 98 671 191 Wait 16 | 12 4 . Move 807 | 68 580 159 Hop . | . . . Pick Up 34 | 7 25 2 Fast Attach . | . . . Attach 10 | 6 2 2 Detach . | . . . Swap 18 | . 14 4 Drop 12 | 1 11 . Fire 63 | 4 35 24 Melee . | . . . Ram . | . . . Kick . | . . . Crush . | . . . Escape Stasis . | . . . Rewire . | . . . Trap . | . . . Miscellaneous . | . . . Route ------- -11/Scrapyard -10/Materials (discovered 4 exits: *Mat x2 / [*Min x2]) -10/Mines (discovered 1 exit: Mat) History --------- Turn | Location | Event 2 | -11/Scrapyard | Met Revision 17 60 | -11/Scrapyard | Discovered new exit (range 8) 87 | -11/Scrapyard | Entered Materials 212 | -10/Materials | Discovered new exit (range 8) 301 | -10/Materials | Build established: Mutant 363 | -10/Materials | Discovered new exit (range 10) 650 | -10/Materials | Discovered new exit (range 11) 719 | -10/Materials | Core integrity fell below 50% 788 | -10/Materials | Discovered new exit (range 9) 810 | -10/Materials | Entered Mines 863 | -10/Mines | Identified exit to Materials 876 | -10/Mines | Received a Rocket Launcher from a helpful Derelict 887 | -10/Mines | Assembled infested the area 948 | -10/Mines | Destroyed 11 combat bots 959 | -10/Mines | Core integrity fell below 20% 1045 | -10/Mines | Destroyed self with Grenade Launcher Last Messages --------------- K-01 Serf collects debris. Acquired 34 matter. K-01 Serf collects debris. The unstable cave ceiling collapses. K-01 Serf collects debris. R-06 Scavenger collects Lgt. Assault Rifle. The unstable cave ceiling collapses. K-01 Serf collects debris. Acquired 48 matter. The unstable cave ceiling collapses. K-01 Serf collects debris. The unstable cave ceiling collapses. K-01 Serf collects debris. Destroyed Com. Wheel. R-06 Scavenger destroyed. K-01 Serf collects debris. Acquired 67 matter. K-01 Serf collects debris. K-01 Serf destroyed. S-10 Pest destroyed. Map ----- +----------------------------------------------------+ | | | | | | | ?????????????????????????????????????????????????? | | ?????????????????????????????????????????????????? | | ?????????????????????????????????????????????????? | | ?????????????????????????????????????????????????? | | ?????????????????????????????????????????????????? | | ?????????????????????????????????????????????????? | | ???????????????????????